fUSD/lending_fUSD_20250125
["ID","MTS","AMOUNT","RATE_DAILY","PERIOD"]
[350362260,1737813100587,-1583.89,0.00018767,2]
[350362261,1737813100597,-782.83,0.00018767,2]
[350362262,1737813100606,-760.48,0.00018767,2]
[350362263,1737813100615,-1381.24,0.00018767,2]
[350362264,1737813100625,-2726.15,0.00018767,2]
[350362265,1737813100634,-766.47,0.00018767,2]
[350362266,1737813100643,-578.7,0.00018767,2]
[350362267,1737813100653,-2076.9,0.00018767,2]
[350362268,1737813100663,-570.43,0.00018767,2]
[350362269,1737813100672,-938.06,0.00018767,2]
[350362270,1737813100681,-500.0,0.00018767,2]
[350362271,1737813100690,-3034.26,0.00018767,2]
[350362272,1737813100699,-1373.5,0.00018767,2]
[350362273,1737813100709,-2953.97,0.00018767,2]
[350362274,1737813100719,-1530.59,0.00018767,2]
[350362275,1737813100728,-1726.4,0.00018767,2]
[350362276,1737813100737,-798.84,0.00018767,2]
[350362277,1737813100747,-626.75,0.00018767,2]
[350362278,1737813100756,-3013.3,0.00018767,2]
[350362279,1737813100765,-739.22,0.00018767,2]
[350362280,1737813100775,-1860.59,0.00018767,2]
[350362281,1737813100783,-1888.84,0.00018767,2]
[350362282,1737813100793,-666.1,0.00018767,2]
[350362283,1737813100802,-500.0,0.00018767,2]
[350362284,1737813100811,-690.64,0.00018767,2]
[350362285,1737813100821,-2315.92,0.00018767,2]
[350362286,1737813100830,-500.0,0.00018767,2]
[350362287,1737813100839,-1623.95,0.00018767,2]
[350362288,1737813100848,-500.0,0.00018767,2]
[350362289,1737813100857,-983.3,0.00018767,2]
[350362290,1737813100866,-500.0,0.00018767,2]
[350362291,1737813100875,-500.0,0.00018767,2]
[350362292,1737813100885,-628.41,0.00018767,2]
[350362293,1737813100896,-547.24,0.00018767,2]
[350362294,1737813100906,-760.92,0.00018767,2]
[350362295,1737813100915,-500.0,0.00018767,2]
[350362296,1737813100924,-772.61,0.00018767,2]
[350362297,1737813100935,-1375.09,0.00018767,2]
[350362298,1737813100944,-537.57,0.00018767,2]
[350362299,1737813100955,-876.13,0.00018767,2]
[350362300,1737813100965,-568.9,0.00018767,2]
[350362301,1737813100975,-2395.84,0.00018767,2]
[350362302,1737813100986,-1063.43,0.00018767,2]
[350362303,1737813100995,-2460.08,0.00018767,2]
[350362304,1737813101005,-394.86,0.00018767,2]
[350362305,1737813101015,-740.0,0.00018767,2]
[350362306,1737813101024,-500.0,0.00018767,2]
[350362307,1737813101034,-689.97,0.00018767,2]
[350362308,1737813101043,-184.08,0.00018767,2]
[350362309,1737813101052,-706.71,0.00018767,2]
[350362310,1737813101061,-1416.08,0.00018767,2]
[350362311,1737813101071,-667.16,0.00018767,2]
[350362312,1737813101080,-1131.23,0.00018767,2]
[350362313,1737813101090,-800.38,0.00018767,2]
[350362314,1737813101099,-842.21,0.00018767,2]
[350362315,1737813101109,-500.0,0.00018767,2]
[350362316,1737813101118,-599.36,0.00018767,2]
[350362317,1737813101128,-732.46,0.00018767,2]
[350362318,1737813101137,-1308.92,0.00018767,2]
[350362319,1737813101146,-1000.0,0.00018767,2]
[350362320,1737813101156,-2319.73,0.00018767,2]
[350362321,1737813101166,-687.95,0.00018767,2]
[350362322,1737813101175,-500.0,0.00018767,2]
[350362323,1737813101185,-924.66,0.00018767,2]
[350362324,1737813101195,-500.0,0.00018767,2]
[350362325,1737813101205,-1116.95,0.00018767,2]
[350362326,1737813101215,-528.29,0.00018767,2]
[350362327,1737813101224,-517.43,0.00018767,2]
[350362328,1737813101233,-621.51,0.00018767,2]
[350362329,1737813101242,-534.07,0.00018767,2]
[350362330,1737813101252,-500.0,0.00018767,2]
[350362331,1737813101261,-591.54,0.00018767,2]
[350362332,1737813101271,-815.81,0.00018767,2]
[350362333,1737813101280,-700.4,0.00018767,2]
[350362334,1737813101290,-192.99448604,0.00018845,2]
[350362335,1737813101299,-2623.3403566,0.00018866,2]
[350362336,1737813101310,-1117.85,0.00018903,2]
[350362337,1737813101319,-547.974536,0.00018904,2]
[350362338,1737813101330,-158.70164,0.00018904,2]
[350362339,1737813101340,-602.38,0.00018904,2]
[350362340,1737813101350,-376.945656,0.00018904,2]
[350362341,1737813101360,-500.0,0.00018904,2]
[350362342,1737813101370,-500.0,0.00018904,2]
[350362343,1737813101380,-500.0,0.00018904,2]
[350362344,1737813101527,-500.0,0.00018904,2]
[350362345,1737813101537,-571.14,0.00018904,2]
[350362346,1737813101547,-533.46,0.00018904,2]
[350362347,1737813101556,-533.48,0.00018904,2]
[350362348,1737813101565,-1433.21,0.00018904,2]
[350362349,1737813101575,-1889.73,0.00018904,2]
[350362350,1737813101584,-665.28,0.00018904,2]
[350362351,1737813101594,-789.58,0.00018904,2]
[350362352,1737813101604,-500.0,0.00018904,2]
[350362353,1737813101613,-500.0,0.00018904,2]
[350362354,1737813101623,-1330.19,0.00018904,2]
[350362355,1737813101633,-511.74,0.00018904,2]
[350362356,1737813101642,-500.0,0.00018904,2]
[350362357,1737813101652,-744.86,0.00018904,2]
[350362358,1737813101661,-770.24,0.00018904,2]
[350362359,1737813101670,-1531.48,0.00018904,2]
[350362360,1737813101680,-2865.43,0.00018904,2]
[350362361,1737813101689,-500.0,0.00018904,2]
[350362362,1737813101699,-716.83,0.00018904,2]
[350362363,1737813101710,-500.0,0.00018904,2]
[350362364,1737813101720,-643.17,0.00018904,2]
[350362365,1737813101730,-609.94,0.00018904,2]
[350362366,1737813101739,-1101.23,0.00018904,2]
[350362367,1737813101748,-1583.89,0.00018904,2]
[350362368,1737813101758,-782.83,0.00018904,2]
[350362369,1737813101767,-760.48,0.00018904,2]
[350362370,1737813101777,-1381.24,0.00018904,2]
[350362371,1737813101787,-2726.15,0.00018904,2]
[350362372,1737813101796,-766.47,0.00018904,2]
[350362373,1737813101805,-578.7,0.00018904,2]
[350362374,1737813101815,-2076.9,0.00018904,2]
[350362375,1737813101825,-570.43,0.00018904,2]
[350362376,1737813101834,-938.06,0.00018904,2]
[350362377,1737813101843,-500.0,0.00018904,2]
[350362378,1737813101852,-3034.26,0.00018904,2]
[350362379,1737813101862,-1373.5,0.00018904,2]
[350362380,1737813101871,-2953.97,0.00018904,2]
[350362381,1737813101880,-1530.59,0.00018904,2]
[350362382,1737813101890,-1726.4,0.00018904,2]
[350362383,1737813101902,-798.84,0.00018904,2]
[350362384,1737813101911,-626.75,0.00018904,2]
[350362385,1737813101922,-3013.3,0.00018904,2]
[350362386,1737813101933,-739.22,0.00018904,2]
[350362387,1737813101943,-1860.59,0.00018904,2]
[350362388,1737813101954,-1888.84,0.00018904,2]
[350362389,1737813101964,-666.1,0.00018904,2]
[350362390,1737813101974,-500.0,0.00018904,2]
[350362391,1737813101983,-690.64,0.00018904,2]
[350362392,1737813101993,-2315.92,0.00018904,2]
[350362393,1737813102003,-500.0,0.00018904,2]
[350362394,1737813102012,-1623.95,0.00018904,2]
[350362395,1737813102022,-500.0,0.00018904,2]
[350362396,1737813102031,-983.3,0.00018904,2]
[350362397,1737813102041,-387.96,0.00018904,2]
[350362398,1737813102050,-628.41,0.00018904,2]
[350362399,1737813102059,-547.24,0.00018904,2]
[350362400,1737813102068,-760.92,0.00018904,2]
[350362401,1737813102077,-242.16,0.00018904,2]
[350362402,1737813102086,-772.61,0.00018904,2]
[350362403,1737813102096,-1375.09,0.00018904,2]
[350362404,1737813102105,-537.57,0.00018904,2]
[350362405,1737813102115,-876.13,0.00018904,2]
[350362406,1737813102124,-568.9,0.00018904,2]
[350362407,1737813102133,-2395.84,0.00018904,2]
[350362408,1737813102143,-1063.43,0.00018904,2]
[350362409,1737813102152,-2460.08,0.00018904,2]
[350362410,1737813102161,-740.0,0.00018904,2]
[350362411,1737813102171,-500.0,0.00018904,2]
[350362412,1737813102180,-689.97,0.00018904,2]
[350362413,1737813102189,-706.71,0.00018904,2]
[350362414,1737813102198,-1416.08,0.00018904,2]
[350362415,1737813102207,-667.16,0.00018904,2]
[350362416,1737813102217,-1131.23,0.00018904,2]
[350362417,1737813102226,-800.38,0.00018904,2]
[350362418,1737813102235,-842.21,0.00018904,2]
[350362419,1737813102246,-599.36,0.00018904,2]
[350362420,1737813102256,-732.46,0.00018904,2]
[350362421,1737813102266,-1308.92,0.00018904,2]
[350362422,1737813102275,-1000.0,0.00018904,2]
[350362423,1737813102285,-2319.73,0.00018904,2]
[350362424,1737813102294,-687.95,0.00018904,2]
[350362425,1737813102304,-500.0,0.00018904,2]
[350362426,1737813102313,-924.66,0.00018904,2]
[350362427,1737813102322,-500.0,0.00018904,2]
[350362428,1737813102331,-1116.95,0.00018904,2]
[350362429,1737813102341,-528.29,0.00018904,2]
[350362430,1737813102350,-517.43,0.00018904,2]
[350362431,1737813102360,-621.51,0.00018904,2]
[350362432,1737813102370,-534.07,0.00018904,2]
[350362433,1737813102379,-269.56,0.00018904,2]
[350362434,1737813102389,-591.54,0.00018904,2]
[350362435,1737813102399,-815.81,0.00018904,2]
[350362436,1737813102408,-700.4,0.00018904,2]
[350362437,1737813102417,-500.0,0.00018986,2]
[350362438,1737813102427,-252.91629582,0.00018998,2]
[350362439,1737813102436,-650.0,0.00019,2]
[350362440,1737813102446,-1272.1188025,0.00019031,2]
[350362441,1737813102457,-1117.85,0.0001904,2]
[350362442,1737813102466,-547.974536,0.00019041,2]
[350362443,1737813102476,-602.38,0.00019041,2]
[350362444,1737813102485,-376.945656,0.00019041,2]
[350362445,1737813102495,-500.0,0.00019041,2]
[350362446,1737813102504,-500.0,0.00019041,2]
[350362447,1737813102514,-500.0,0.00019041,2]
[350362448,1737813102523,-500.0,0.00019041,2]
[350362449,1737813102532,-571.14,0.00019041,2]
[350362450,1737813102541,-533.46,0.00019041,2]
[350362451,1737813102551,-533.48,0.00019041,2]
[350362452,1737813102560,-1433.21,0.00019041,2]
[350362453,1737813102569,-1889.73,0.00019041,2]
[350362454,1737813102579,-665.28,0.00019041,2]
[350362455,1737813102588,-789.58,0.00019041,2]
[350362456,1737813102598,-500.0,0.00019041,2]
[350362457,1737813102607,-500.0,0.00019041,2]
[350362458,1737813102616,-1330.19,0.00019041,2]
[350362459,1737813102627,-500.0,0.00019041,2]
[350362460,1737813102638,-744.86,0.00019041,2]
[350362461,1737813102649,-770.24,0.00019041,2]
[350362462,1737813102658,-1531.48,0.00019041,2]
[350362463,1737813102667,-2865.43,0.00019041,2]
[350362464,1737813102676,-500.0,0.00019041,2]
[350362465,1737813102685,-716.83,0.00019041,2]
[350362466,1737813102694,-500.0,0.00019041,2]
[350362467,1737813102704,-643.17,0.00019041,2]
[350362468,1737813102713,-609.94,0.00019041,2]
[350362469,1737813102722,-1101.23,0.00019041,2]
[350362470,1737813102731,-1583.89,0.00019041,2]
[350362471,1737813102740,-782.83,0.00019041,2]
[350362472,1737813102750,-760.48,0.00019041,2]
[350362473,1737813102759,-1381.24,0.00019041,2]
[350362474,1737813102767,-2726.15,0.00019041,2]
[350362475,1737813102776,-766.47,0.00019041,2]
[350362476,1737813102785,-578.7,0.00019041,2]
[350362477,1737813102794,-2076.9,0.00019041,2]
[350362478,1737813102803,-570.43,0.00019041,2]
[350362479,1737813102812,-938.06,0.00019041,2]
[350362480,1737813102822,-500.0,0.00019041,2]
[350362481,1737813102830,-1373.5,0.00019041,2]
[350362482,1737813102839,-3034.26,0.00019041,2]
[350362483,1737813102851,-2953.97,0.00019041,2]
[350362484,1737813102860,-1530.59,0.00019041,2]
[350362485,1737813102869,-1726.4,0.00019041,2]
[350362486,1737813102878,-798.84,0.00019041,2]
[350362487,1737813102888,-626.75,0.00019041,2]
[350362488,1737813102900,-3013.3,0.00019041,2]
[350362489,1737813102910,-739.22,0.00019041,2]
[350362490,1737813102919,-1860.59,0.00019041,2]
[350362491,1737813102928,-1888.84,0.00019041,2]
[350362492,1737813102939,-666.1,0.00019041,2]
[350362493,1737813102948,-500.0,0.00019041,2]
[350362494,1737813102958,-690.64,0.00019041,2]
[350362495,1737813102968,-2315.92,0.00019041,2]
[350362496,1737813102978,-500.0,0.00019041,2]
[350362497,1737813102988,-1623.95,0.00019041,2]
[350362498,1737813102997,-500.0,0.00019041,2]
[350362499,1737813103007,-983.3,0.00019041,2]
[350362500,1737813103015,-628.41,0.00019041,2]
[350362501,1737813103025,-547.24,0.00019041,2]
[350362502,1737813103034,-760.92,0.00019041,2]
[350362503,1737813103044,-772.61,0.00019041,2]
[350362504,1737813103055,-1375.09,0.00019041,2]
[350362505,1737813103065,-537.57,0.00019041,2]
[350362506,1737813103074,-876.13,0.00019041,2]
[350362507,1737813103083,-568.9,0.00019041,2]
[350362508,1737813103092,-2395.84,0.00019041,2]
[350362509,1737813103101,-1063.43,0.00019041,2]
[350362510,1737813103111,-2460.08,0.00019041,2]
[350362511,1737813103120,-740.0,0.00019041,2]
[350362512,1737813103129,-500.0,0.00019041,2]
[350362513,1737813103138,-689.97,0.00019041,2]
[350362514,1737813103147,-706.71,0.00019041,2]
[350362515,1737813103156,-667.16,0.00019041,2]
[350362516,1737813103165,-1416.08,0.00019041,2]
[350362517,1737813103174,-1131.23,0.00019041,2]
[350362518,1737813103184,-800.38,0.00019041,2]
[350362519,1737813103193,-842.21,0.00019041,2]
[350362520,1737813103203,-599.36,0.00019041,2]
[350362521,1737813103213,-732.46,0.00019041,2]
[350362522,1737813103222,-1308.92,0.00019041,2]
[350362523,1737813103232,-1000.0,0.00019041,2]
[350362524,1737813103241,-2319.73,0.00019041,2]
[350362525,1737813103250,-687.95,0.00019041,2]
[350362526,1737813103260,-500.0,0.00019041,2]
[350362527,1737813103269,-924.66,0.00019041,2]
[350362528,1737813103279,-500.0,0.00019041,2]
[350362529,1737813103288,-1116.95,0.00019041,2]
[350362530,1737813103298,-528.29,0.00019041,2]
[350362531,1737813103307,-517.43,0.00019041,2]
[350362532,1737813103316,-621.51,0.00019041,2]
[350362533,1737813103326,-534.07,0.00019041,2]
[350362534,1737813103335,-591.54,0.00019041,2]
[350362535,1737813103345,-815.81,0.00019041,2]
[350362536,1737813103354,-700.4,0.00019041,2]
[350362537,1737813103364,-1117.85,0.00019177,2]
[350362538,1737813103374,-547.974536,0.00019178,2]
[350362539,1737813103384,-602.38,0.00019178,2]
[350362540,1737813103393,-376.945656,0.00019178,2]
[350362541,1737813103403,-289.41,0.00019178,2]
[350362542,1737813103412,-500.0,0.00019178,2]
[350362543,1737813103422,-194.35444967,0.00019178,2]
[350362544,1737813103432,-500.0,0.00019178,2]
[350362545,1737813103442,-571.14,0.00019178,2]
[350362546,1737813103452,-533.46,0.00019178,2]
[350362547,1737813103462,-533.48,0.00019178,2]
[350362548,1737813103471,-1433.21,0.00019178,2]
[350362549,1737813103481,-1889.73,0.00019178,2]
[350362550,1737813103491,-665.28,0.00019178,2]
[350362551,1737813103500,-789.58,0.00019178,2]
[350362552,1737813103510,-350.38,0.00019178,2]
[350362553,1737813103521,-557.28,0.00019178,2]
[350362554,1737813103531,-1330.19,0.00019178,2]
[350362555,1737813103541,-500.0,0.00019178,2]
[350362556,1737813103551,-744.86,0.00019178,2]
[350362557,1737813103561,-770.24,0.00019178,2]
[350362558,1737813103570,-1531.48,0.00019178,2]
[350362559,1737813103580,-2865.43,0.00019178,2]
[350362560,1737813103589,-500.0,0.00019178,2]
[350362561,1737813103597,-716.83,0.00019178,2]
[350362562,1737813103607,-500.0,0.00019178,2]
[350362563,1737813103617,-643.17,0.00019178,2]
[350362564,1737813103626,-609.94,0.00019178,2]
[350362565,1737813103766,-1101.23,0.00019178,2]
[350362566,1737813103776,-1583.89,0.00019178,2]
[350362567,1737813103785,-760.48,0.00019178,2]
[350362568,1737813103794,-782.83,0.00019178,2]
[350362569,1737813103804,-1381.24,0.00019178,2]
[350362570,1737813103813,-2726.15,0.00019178,2]
[350362571,1737813103822,-766.47,0.00019178,2]
[350362572,1737813103832,-578.7,0.00019178,2]
[350362573,1737813103842,-2076.9,0.00019178,2]
[350362574,1737813103851,-570.43,0.00019178,2]
[350362575,1737813103861,-938.06,0.00019178,2]
[350362576,1737813103870,-438.72909304,0.00019178,2]
[350362577,1737813103880,-1373.5,0.00019178,2]
[350362578,1737813103890,-3034.26,0.00019178,2]
[350362579,1737813103903,-2953.97,0.00019178,2]
[350362580,1737813103912,-1530.59,0.00019178,2]
[350362581,1737813103921,-1726.4,0.00019178,2]
[350362582,1737813103931,-798.84,0.00019178,2]
[350362583,1737813103941,-626.75,0.00019178,2]
[350362584,1737813103951,-3013.3,0.00019178,2]
[350362585,1737813103961,-739.22,0.00019178,2]
[350362586,1737813103971,-1860.59,0.00019178,2]
[350362587,1737813103981,-1888.84,0.00019178,2]
[350362588,1737813103990,-666.1,0.00019178,2]
[350362589,1737813104000,-500.0,0.00019178,2]
[350362590,1737813104010,-690.64,0.00019178,2]
[350362591,1737813104020,-2315.92,0.00019178,2]
[350362592,1737813104030,-417.96,0.00019178,2]
[350362593,1737813104039,-1623.95,0.00019178,2]
[350362594,1737813104048,-500.0,0.00019178,2]
[350362595,1737813104058,-983.3,0.00019178,2]
[350362596,1737813104067,-628.41,0.00019178,2]
[350362597,1737813104077,-547.24,0.00019178,2]
[350362598,1737813104086,-760.92,0.00019178,2]
[350362599,1737813104096,-772.61,0.00019178,2]
[350362600,1737813104105,-1375.09,0.00019178,2]
[350362601,1737813104114,-537.57,0.00019178,2]
[350362602,1737813104123,-876.13,0.00019178,2]
[350362603,1737813104132,-568.9,0.00019178,2]
[350362604,1737813104141,-2395.84,0.00019178,2]
[350362605,1737813104151,-1063.43,0.00019178,2]
[350362606,1737813104160,-2460.08,0.00019178,2]
[350362607,1737813104170,-740.0,0.00019178,2]
[350362608,1737813104179,-412.85388806,0.00019178,2]
[350362609,1737813104188,-689.97,0.00019178,2]
[350362610,1737813104197,-706.71,0.00019178,2]
[350362611,1737813104207,-667.16,0.00019178,2]
[350362612,1737813104216,-1416.08,0.00019178,2]
[350362613,1737813104225,-1131.23,0.00019178,2]
[350362614,1737813104235,-800.38,0.00019178,2]
[350362615,1737813104244,-842.21,0.00019178,2]
[350362616,1737813104253,-599.36,0.00019178,2]
[350362617,1737813104263,-732.46,0.00019178,2]
[350362618,1737813104272,-1308.92,0.00019178,2]
[350362619,1737813104281,-1000.0,0.00019178,2]
[350362620,1737813104291,-2319.73,0.00019178,2]
[350362621,1737813104300,-687.95,0.00019178,2]
[350362622,1737813104310,-500.0,0.00019178,2]
[350362623,1737813104320,-924.66,0.00019178,2]
[350362624,1737813104330,-500.0,0.00019178,2]
[350362625,1737813104340,-1116.95,0.00019178,2]
[350362626,1737813104350,-528.29,0.00019178,2]
[350362627,1737813104359,-517.43,0.00019178,2]
[350362628,1737813104369,-621.51,0.00019178,2]
[350362629,1737813104378,-534.07,0.00019178,2]
[350362630,1737813104387,-591.54,0.00019178,2]
[350362631,1737813104397,-815.81,0.00019178,2]
[350362632,1737813104406,-154.88,0.00019198,2]
[350362633,1737813104417,-150.0,0.00019211,2]
[350362634,1737813104426,-87832.3959168,0.00019221,2]
[350362635,1737813104436,-2623.3403566,0.00019245,2]
[350362636,1737813104446,-150.0,0.00019248,2]
[350362637,1737813104455,-1257.0959191,0.00019256,2]
[350362638,1737813104465,-500.0,0.0001926,2]
[350362639,1737813104474,-500.0,0.00019299,2]
[350362640,1737813104484,-250000.0,0.000193,2]
[350362641,1737813104493,-1117.85,0.00019314,2]
[350362642,1737813104502,-547.974536,0.00019315,2]
[350362643,1737813104512,-602.38,0.00019315,2]
[350362644,1737813104522,-376.945656,0.00019315,2]
[350362645,1737813104532,-500.0,0.00019315,2]
[350362646,1737813104542,-500.0,0.00019315,2]
[350362647,1737813104552,-571.14,0.00019315,2]
[350362648,1737813104562,-533.46,0.00019315,2]
[350362649,1737813104572,-533.48,0.00019315,2]
[350362650,1737813104581,-1433.21,0.00019315,2]
[350362651,1737813104591,-1889.73,0.00019315,2]
[350362652,1737813104601,-665.28,0.00019315,2]
[350362653,1737813104611,-789.58,0.00019315,2]
[350362654,1737813104621,-1330.19,0.00019315,2]
[350362655,1737813104631,-500.0,0.00019315,2]
[350362656,1737813104640,-744.86,0.00019315,2]
[350362657,1737813104650,-770.24,0.00019315,2]
[350362658,1737813104660,-1531.48,0.00019315,2]
[350362659,1737813104671,-2865.43,0.00019315,2]
[350362660,1737813104680,-500.0,0.00019315,2]
[350362661,1737813104689,-716.83,0.00019315,2]
[350362662,1737813104698,-152.38001756,0.00019315,2]
[350362663,1737813104709,-643.17,0.00019315,2]
[350362664,1737813104718,-609.94,0.00019315,2]
[350362665,1737813104727,-1101.23,0.00019315,2]
[350362666,1737813104737,-1583.89,0.00019315,2]
[350362667,1737813104746,-782.83,0.00019315,2]
[350362668,1737813104756,-760.48,0.00019315,2]
[350362669,1737813104765,-1381.24,0.00019315,2]
[350362670,1737813104774,-2726.15,0.00019315,2]
[350362671,1737813104783,-766.47,0.00019315,2]
[350362672,1737813104792,-578.7,0.00019315,2]
[350362673,1737813104802,-2076.9,0.00019315,2]
[350362674,1737813104811,-570.43,0.00019315,2]
[350362675,1737813104820,-938.06,0.00019315,2]
[350362676,1737813104829,-1373.5,0.00019315,2]
[350362677,1737813104838,-3034.26,0.00019315,2]
[350362678,1737813104848,-2953.97,0.00019315,2]
[350362679,1737813104856,-1530.59,0.00019315,2]
[350362680,1737813104865,-1726.4,0.00019315,2]
[350362681,1737813104874,-798.84,0.00019315,2]
[350362682,1737813104884,-626.75,0.00019315,2]
[350362683,1737813104897,-3013.3,0.00019315,2]
[350362684,1737813104907,-739.22,0.00019315,2]
[350362685,1737813104917,-1860.59,0.00019315,2]
[350362686,1737813104926,-1888.84,0.00019315,2]
[350362687,1737813104936,-666.1,0.00019315,2]
[350362688,1737813104946,-500.0,0.00019315,2]
[350362689,1737813104956,-690.64,0.00019315,2]
[350362690,1737813104965,-2315.92,0.00019315,2]
[350362691,1737813104976,-1623.95,0.00019315,2]
[350362692,1737813104986,-151.72,0.00019315,2]
[350362693,1737813104995,-983.3,0.00019315,2]
[350362694,1737813105004,-628.41,0.00019315,2]
[350362695,1737813105014,-547.24,0.00019315,2]
[350362696,1737813105023,-760.92,0.00019315,2]
[350362697,1737813105033,-772.61,0.00019315,2]
[350362698,1737813105043,-1375.09,0.00019315,2]
[350362699,1737813105052,-537.57,0.00019315,2]
[350362700,1737813105061,-876.13,0.00019315,2]
[350362701,1737813105070,-568.9,0.00019315,2]
[350362702,1737813105080,-2395.84,0.00019315,2]
[350362703,1737813105089,-1063.43,0.00019315,2]
[350362704,1737813105099,-2460.08,0.00019315,2]
[350362705,1737813105109,-740.0,0.00019315,2]
[350362706,1737813105118,-689.97,0.00019315,2]
[350362707,1737813105127,-706.71,0.00019315,2]
[350362708,1737813105137,-667.16,0.00019315,2]
[350362709,1737813105146,-1416.08,0.00019315,2]
[350362710,1737813105156,-1131.23,0.00019315,2]
[350362711,1737813105165,-800.38,0.00019315,2]
[350362712,1737813105174,-842.21,0.00019315,2]
[350362713,1737813105184,-599.36,0.00019315,2]
[350362714,1737813105194,-732.46,0.00019315,2]
[350362715,1737813105203,-1308.92,0.00019315,2]
[350362716,1737813105212,-594.82985501,0.00019315,2]
[350362717,1737813105221,-2319.73,0.00019315,2]
[350362718,1737813105230,-687.95,0.00019315,2]
[350362719,1737813105239,-484.07576994,0.00019315,2]
[350362720,1737813105248,-924.66,0.00019315,2]
[350362721,1737813105257,-401.6,0.00019315,2]
[350362722,1737813105266,-1116.95,0.00019315,2]
[350362723,1737813105275,-528.29,0.00019315,2]
[350362724,1737813105284,-517.43,0.00019315,2]
[350362725,1737813105293,-621.51,0.00019315,2]
[350362726,1737813105302,-534.07,0.00019315,2]
[350362727,1737813105311,-591.54,0.00019315,2]
[350362728,1737813105320,-815.81,0.00019315,2]
[350362729,1737813105329,-5167.02972431,0.00019325,2]
[350362730,1737813105338,-497.75825641,0.00019325,2]
[350362731,1737813105348,-150.0,0.00019333,2]
[350362732,1737813105357,-500.0,0.00019333,2]
[350362733,1737813105366,-201.25675011,0.00019346,2]
[350362734,1737813105376,-150.0,0.00019347,2]
[350362735,1737813105385,-3944.73848488,0.00019348,2]
[350362736,1737813105394,-3944.73848488,0.00019365,2]
[350362737,1737813105403,-559.21942684,0.00019388,2]
[350362738,1737813105413,-150.0,0.00019395,2]
[350362739,1737813105422,-559.21942684,0.00019405,2]
[350362740,1737813105431,-1692.06635193,0.0001941,2]
[350362741,1737813105440,-3944.73848488,0.00019411,2]
[350362742,1737813105449,-1692.06635193,0.00019412,2]
[350362743,1737813105458,-32568.4719061,0.00019415,2]
[350362744,1737813105468,-8997.8949167,0.00019415,2]
[350362745,1737813105477,-3944.73848488,0.00019415,2]
[350362746,1737813105486,-4224.76254523,0.00019416,2]
[350362747,1737813105495,-1692.06635193,0.00019418,2]
[350362748,1737813105505,-559.21942684,0.00019419,2]
[350362749,1737813105514,-5688.06036817,0.0001942,2]
[350362750,1737813105523,-2000.0,0.0001942,2]
[350362751,1737813105532,-200.0,0.0001942,2]
[350362752,1737813105541,-376.3,0.0001942,2]
[350362753,1737813105550,-8469.98539866,0.0001942,2]
[350362754,1737813105559,-659.79194073,0.0001942,2]
[350362755,1737813105568,-1552.63596122,0.00019421,2]
[350362756,1737813105577,-4234.99269933,0.00019421,2]
[350362757,1737813105586,-16853.49215723,0.00019421,2]
[350362758,1737813105594,-200.0,0.00019422,2]
[350362759,1737813105604,-150.0,0.00019422,2]